Cogmind - Beta 9.3 *** ADVENTURER MODE // 2020.01.04 @ 14:16:45 // Winter2019/RPGLIKE Player: BW-032 Result: Destroyed by G-67 Veteran with Plasma Rifle Performance ------------- Evolutions (7) 3500 Regions Visited (22) 4400 Robots Destroyed (199) 995 Value Destroyed (7540) 7540 Prototype IDs (46) 920 Alien Tech Used (2) 400 Bonus (4989) 4989 TOTAL SCORE: 22744 Bonus ------- High Alert Combat Kills 818 Follower Combat Kills 1315 Network Hubs Disabled 200 Met Imprinter 300 Was Imprinted 300 Destroyed Z-Imprinter 1000 Met Zhirov 300 Built Enhanced Grunts 300 A7 Reached Mainframe 300 Met R17 at Cetus 500 Read Decrypted Archives 600 Friendly Fire -944 Cogmind --------- Core Integrity 0/1050 Matter 318/450 Energy 430/430 System Corruption 1% Temperature Cool (12) Movement Flying (29) Location -3/Quarantine Parts ------- > --- POWER (1) -------- Light Particle Reactor > --- PROPULSION (5) --- Q-thruster Q-thruster Electron Diverter Impulse Thruster Array > --- UTILITY (7) ------ Experimental Sensor Array Advanced Signal Interpreter Long-range Terrain Scanner Advanced Targeting Computer Advanced Powered Armor Improved Hacking Suite Improved System Shield > --- WEAPON (5) ------- Heavy Plasma Cannon Neutron Cannon EMP Blaster Precision Grenade Launcher Force Lance > --- INVENTORY (4) ---- Dispersion Rifle Core Cannon Self-destruct Interrupter (50) Peak State ------------ > --- POWER ------------ Light Particle Reactor > --- PROPULSION ------- Q-thruster Q-thruster Electron Diverter Impulse Thruster Array > --- UTILITY ---------- Experimental Sensor Array Advanced Signal Interpreter Long-range Terrain Scanner Advanced Targeting Computer Improved Medium Armor Plating Improved Hacking Suite Improved System Shield > --- WEAPON ----------- Core Cannon EMP Blaster Precision Grenade Launcher Force Lance > --- INVENTORY -------- Impulse Thruster Array Dispersion Rifle Self-destruct Interrupter [Rating: 123] Favorites ----------- Power Light Deuterium Engine Engine Light Deuterium Engine Reactor Light Particle Reactor Propulsion Cesium-ion Thruster Wheel Wheel Hover Unit Hover Unit Flight Unit Cesium-ion Thruster Utility Experimental Sensor Array Device Experimental Sensor Array Storage Compact Matter Pod Processor Advanced Targeting Computer Hackware Hacking Suite Protection Light Armor Plating Weapon Lightning Gun Energy Gun Lightning Gun Energy Cannon Plasma Cannon Ballistic Gun Light Assault Rifle Ballistic Cannon Flak Cannon Launcher EMP Blaster Special Weapon Plasma Flamer Impact Weapon Power Maul Slashing Weapon Power Sword Piercing Weapon Force Lance Build | -11 -10 -10 -9 -9 -9 -8 -8 -7 -7 -7 -7 -7 -6 -6 -6 -6 -6 -6 -5 -4 -3 -3 ------- Run | Scr Mat Min Mat Min Exi Min Mat Fac Low Low Zio Dee Pro Fac Ext Cet Arc Hub Fac Fac Res Qua Slots Evolved 14 | . 2 . 2 2 . . 1 1 . . . . 1 1 . 1 . . . 1 1 1 Power . | . . . . . . . . . . . . . . . . . . . . . . . Propulsion 4 | . . . . 1 . . . . . . . . . 1 . . . . . . 1 1 Utility 6 | . 2 . 1 1 . . 1 . . . . . . . . . . . . 1 . . Weapon 4 | . . . 1 . . . . 1 . . . . 1 . . 1 . . . . . . Parts Attached 102 | 3 6 4 4 3 . 1 6 10 . 6 . . 3 18 . 1 . 1 7 9 5 15 Power 6 | 1 1 . . . . 1 1 . . . . . . 1 . . . . . . 1 . Engine 4 | 1 1 . . . . 1 1 . . . . . . . . . . . . . . . Core . | . . . . . . . . . . . . . . . . . . . . . . . Reactor 2 | . . . . . . . . . . . . . . 1 . . . . . . 1 . Propulsion 19 | 1 1 . 1 1 . . . . . 2 . . . 3 . . . . 1 3 2 4 Treads . | . . . . . . . . . . . . . . . . . . . . . . . Leg . | . . . . . . . . . . . . . . . . . . . . . . . Wheel 1 | 1 . . . . . . . . . . . . . . . . . . . . . . Hover 1 | . 1 . . . . . . . . . . . . . . . . . . . . . Flight 17 | . . . 1 1 . . . . . 2 . . . 3 . . . . 1 3 2 4 Utility 40 | . 4 4 2 1 . . 2 4 . . . . 2 6 . . . 1 1 3 2 8 Device 23 | . 2 3 . . . . . 4 . . . . 2 2 . . . . . 1 2 7 Storage 1 | . . 1 . . . . . . . . . . . . . . . . . . . . Processor 5 | . . . 1 . . . 2 . . . . . . 1 . . . 1 . . . . Hackware 4 | . . . 1 1 . . . . . . . . . 1 . . . . 1 . . . Protection 7 | . 2 . . . . . . . . . . . . 2 . . . . . 2 . 1 Artifact . | . . . . . . . . . . . . . . . . . . . . . . . Weapon 37 | 1 . . 1 1 . . 3 6 . 4 . . 1 8 . 1 . . 5 3 . 3 Energy Gun 6 | . . . . . . . . 1 . 4 . . . 1 . . . . . . . . Energy Cannon 12 | . . . 1 . . . . 2 . . . . . 3 . . . . 1 2 . 3 Ballistic Gun 2 | 1 . . . . . . . 1 . . . . . . . . . . . . . . Ballistic Cannon 1 | . . . . . . . . 1 . . . . . . . . . . . . . . Launcher 9 | . . . . 1 . . 3 1 . . . . . 2 . . . . 2 . . . Special Weapon 3 | . . . . . . . . . . . . . 1 . . 1 . . 1 . . . Impact Weapon 1 | . . . . . . . . . . . . . . . . . . . 1 . . . Slashing Weapon 1 | . . . . . . . . . . . . . . 1 . . . . . . . . Piercing Weapon 2 | . . . . . . . . . . . . . . 1 . . . . . 1 . . Special Melee Weapon . | . . . . . . . . . . . . . . . . . . . . . . . Unidentified Prototypes 6 | . . 1 1 . . . . . . . . . . . . . . . . . . 4 Parts Lost 4 | . . . . . . . . . . . . . . . . . . . 4 . . . Power . | . . . . . . . . . . . . . . . . . . . . . . . Propulsion 2 | . . . . . . . . . . . . . . . . . . . 2 . . . Utility . | . . . . . . . . . . . . . . . . . . . . . . . Weapon 2 | . . . . . . . . . . . . . . . . . . . 2 . . . Highest Loss Streak 4 | . . . . . . . . . . . . . . . . . . . 4 . . . Average Slot Usage (%) 97 | . 72 99 97 100 100 100 100 99 100 100 100 100 95 96 100 100 100 100 89 91 88 93 Engine 6 | . 16 16 13 10 10 10 9 8 8 8 8 8 7 4 . . . . . . . . Reactor 1 | . . . . . . . . . . . . . . 2 7 6 6 6 6 6 5 5 Hover 1 | . 9 16 4 . . . . . . . . . . . . . . . . . . . Flight 15 | . . . 9 16 20 20 18 16 16 16 16 16 15 17 21 20 20 20 14 12 11 19 Device 15 | . 8 17 26 22 20 20 18 16 16 16 16 16 15 13 14 13 13 13 13 12 11 10 Processor 12 | . . . 7 10 10 10 17 16 16 16 16 16 15 14 14 13 13 13 13 12 11 11 Hackware 13 | . . . 4 16 20 20 18 16 16 16 16 16 15 14 14 13 13 13 13 12 11 11 Protection 1 | . 11 16 5 . . . . . . . . . . . . . . . . 4 5 5 Energy Gun 3 | . . . . . . . . 4 8 8 8 8 7 6 7 6 6 6 1 . . . Energy Cannon 7 | . . . 10 10 10 10 9 8 8 8 8 8 7 7 7 6 6 6 6 8 11 11 Ballistic Gun 2 | . 16 16 13 . . . . . . . . . . . . . . . . . . . Launcher 7 | . . . . 9 10 10 9 8 8 8 8 8 7 6 7 6 6 6 10 12 11 11 Special Weapon 1 | . . . . . . . . . . . . . 3 5 . 6 6 6 2 2 . . Slashing Weapon 1 | . . . . . . . . . . . . . . 1 7 6 6 6 6 5 . . Naked Turns . | . . . . . . . . . . . . . . . . . . . . . . . Heaviest Build 66 | 4 8 9 13 13 13 15 15 23 23 23 23 23 26 38 38 41 41 41 42 58 58 66 Greatest Support 97 | 10 20 13 16 27 27 27 27 27 27 31 36 36 36 44 44 44 44 44 49 68 85 97 Greatest Overweight (x) 1 | . . . . . . . . . . . . . . . . . . . . 1 . . Average Overweight (x) . | . . . . . . . . . . . . . . . . . . . . . . . Largest Inventory Capacity 4 | . . . 2 2 2 2 2 4 4 4 4 4 4 4 4 4 4 4 4 4 4 4 Average Capacity 3 | . . . 1 2 2 2 2 3 4 4 4 4 4 4 4 4 4 4 4 4 4 4 Most Carried 4 | . . . 2 2 2 2 2 3 4 4 4 4 4 4 4 4 3 3 4 4 4 4 Average Carried 2 | . . . 1 1 2 1 1 2 3 3 3 4 3 3 4 3 3 3 2 3 3 3 Final Capacity 4 | . . . 2 2 2 2 2 4 4 4 4 4 4 4 4 4 4 4 4 4 4 4 Final Carried 4 | . . . 2 2 2 2 2 3 4 4 4 4 3 4 4 3 3 3 3 4 3 4 Class Distribution -------------------- 87% | Hacker-Scout 7% | Hacker-Mutant Dominant Class ---------------- Hacker-Mutant | -10/Materials Hacker-Mutant | -10/Mines Hacker-Scout | -9/Materials Hacker-Scout | -9/Mines Hacker-Scout | -9/Exiles Hacker-Scout | -8/Mines Hacker-Scout | -8/Materials Hacker-Scout | -7/Factory Hacker-Scout | -7/Lower Caves Hacker-Scout | -7/Lower Caves Hacker-Scout | -7/Zion Hacker-Scout | -7/Deep Caves Hacker-Scout | -6/Proximity Caves Hacker-Scout | -6/Factory Hacker-Scout | -6/Extension Hacker-Scout | -6/Cetus Hacker-Scout | -6/Archives Hacker-Scout | -6/Hub_04(d) Hacker-Scout | -5/Factory Hacker-Scout | -4/Factory Hacker-Scout | -3/Research Hacker-Scout | -3/Quarantine Resources | -11 -10 -10 -9 -9 -9 -8 -8 -7 -7 -7 -7 -7 -6 -6 -6 -6 -6 -6 -5 -4 -3 -3 ----------- Run | Scr Mat Min Mat Min Exi Min Mat Fac Low Low Zio Dee Pro Fac Ext Cet Arc Hub Fac Fac Res Qua Matter Collected 2432 | 230 27 99 72 176 . 130 133 88 260 76 . 20 30 204 173 179 . 179 113 123 25 95 Remotely . | . . . . . . . . . . . . . . . . . . . . . . . Salvage Created 6682 | . 28 181 248 159 . 165 439 624 398 305 . 57 . 722 1091 307 301 590 425 438 25 179 Parts 343 | . 4 12 28 17 . 9 40 34 20 15 . 3 . 23 30 20 11 22 20 16 3 16 Haulers Intercepted 1 | . . . . . . . 1 . . . . . . . . . . . . . . . Recyclers Shooed 5 | . . 1 . 1 . . 1 . . . . . . 1 . . . . . 1 . . Parts Field Recycled . | . . . . . . . . . . . . . . . . . . . . . . . Retrieved Matter . | . . . . . . . . . . . . . . . . . . . . . . . Parts Self-Destructed 11 | . . . . . . . . . 5 6 . . . . . . . . . . . . Prevented 18 | . . . . . . . . . 15 3 . . . . . . . . . . . . Kills | -11 -10 -10 -9 -9 -9 -8 -8 -7 -7 -7 -7 -7 -6 -6 -6 -6 -6 -6 -5 -4 -3 -3 ------- Run | Scr Mat Min Mat Min Exi Min Mat Fac Low Low Zio Dee Pro Fac Ext Cet Arc Hub Fac Fac Res Qua Combat Hostiles Destroyed 146 | . . 1 11 25 . 9 10 7 6 5 . 4 . 9 17 9 8 7 6 8 . 4 Melee 5 | . . . . . . . . . . . . . . . 1 . . . . . . 4 Guns 13 | . . 1 2 . . . . . . 2 . 2 . . 2 3 . 1 . . . . Cannons 45 | . . . 9 8 . 1 1 3 3 . . 1 . 4 6 . 2 2 3 2 . . AOE 72 | . . . . 17 . 8 9 4 1 3 . 1 . 2 7 4 6 2 2 6 . . Classes Destroyed 18 | . 1 4 3 2 . 1 2 . 1 1 . . . . . . . 1 . 2 . . Worker 14 | . . . . . . . 1 5 . . . . . . . . . 3 3 1 1 . Builder 6 | . . 1 . . . . 2 . . . . . . . . . . 1 1 1 . . Tunneler 2 | . . 2 . . . . . . . . . . . . . . . . . . . . Hauler 1 | . . . . . . . 1 . . . . . . . . . . . . . . . Recycler 6 | . . 1 . 1 . . 1 1 . . . . . 1 1 . . . . . . . Operator 6 | . . . 1 . . . . 1 . . . . . 1 1 . . 1 . 1 . . Drone 1 | . . . . . . . . . . . . . . . . . . . . 1 . . Watcher 11 | . 1 . 1 . . . 1 1 . . . . . 1 2 1 . 1 2 . . . Swarmer 31 | . . 1 3 8 . 3 4 . 2 4 . . . . . 6 . . . . . . Grunt 62 | . . . 4 3 . 4 5 5 3 . . . . 5 9 . 7 3 4 6 . 4 Brawler 5 | . . . . . . 2 . . . . . . . . 1 . . . 1 1 . . Duelist 1 | . . . . . . . . . . . . . . . . . . . . 1 . . Sentry 15 | . . . 4 . . . 1 1 . . . . . 4 2 . . 2 1 . . . Demolisher 3 | . . . . 2 . . . 1 . . . . . . . . . . . . . . Hunter 3 | . . . . . . . . . . 1 . . . . . . 1 1 . . . . Programmer 1 | . . . . . . . . . . . . . . . . . . 1 . . . . Behemoth 1 | . . . . . . . . . 1 . . . . . . . . . . . . . Cetus Guard 3 | . . . . . . . . . . . . . . . . 3 . . . . . . Z-Technician 5 | . . . . . . . . . . . . 5 . . . . . . . . . . Assembled 15 | . . . . 12 . . . . . . . 3 . . . . . . . . . . Thug 1 | . . . . . . . . . . . . . . . 1 . . . . . . . Savage 2 | . . . . . . . . . . 1 . . . . 1 . . . . . . . Guerrilla 3 | . . . . . . . . . . . . . . . 3 . . . . . . . Best Kill Streak 17 | . 1 2 4 17 . 3 11 5 3 4 . 6 . 9 5 7 7 6 4 7 1 3 Combat Bots Only 16 | . . 1 4 16 . 3 4 4 3 4 . 3 . 6 5 7 7 5 3 5 . 3 Max Kills in Single Turn 5 | . 1 1 1 3 . 2 3 5 1 3 . 4 . 2 2 2 4 5 2 5 1 1 Gunslinging . | . . . . . . . . . . . . . . . . . . . . . . . Exploded 4 | . . . . 3 . 2 2 1 1 3 . 1 . 2 2 2 4 1 1 3 . . Melee 1 | . . . . . . . . . . . . . . . 1 . . . . . . 1 Uniques/NPCs Destroyed 1 | . . . . . . . . . . . . 1 . . . . . . . . . . Z-Imprinter (-7/Deep Caves) Combat | -11 -10 -10 -9 -9 -9 -8 -8 -7 -7 -7 -7 -7 -6 -6 -6 -6 -6 -6 -5 -4 -3 -3 -------- Run | Scr Mat Min Mat Min Exi Min Mat Fac Low Low Zio Dee Pro Fac Ext Cet Arc Hub Fac Fac Res Qua Damage Taken 4337 | . . 9 35 383 . 113 81 191 316 52 . 293 . 234 257 463 349 364 473 185 104 435 Core 3453 | . . 7 28 307 . 94 61 145 266 39 . 236 . 178 203 366 277 289 372 166 82 337 Absorbed by Shields 220 | . . . . . . . . . . . . . . . 11 209 . . . . . . Redirected to Core 2831 | . . 7 18 223 . 69 61 139 164 39 . 212 . 143 168 299 255 223 327 65 82 337 Core Remaining (%) 71 | 100 . 100 . . . 77 100 . . . . . 77 . . . . 63 29 22 . . Volleys Fired 360 | . 7 29 26 31 . 21 17 51 25 11 . 9 . 25 27 24 6 21 19 11 . . Largest 4 | . 1 1 2 2 . 2 2 3 3 3 . 3 . 3 3 3 3 4 4 3 . . Hottest 266 | . 20 20 88 101 . 101 101 168 168 168 . 168 . 230 166 230 166 266 266 213 . . Shots Fired 643 | . 7 29 47 52 . 30 28 67 46 26 . 23 . 51 59 52 15 52 41 18 . . Gun 197 | . 7 29 22 3 . . . 14 14 11 . 9 . 12 24 18 6 19 9 . . . Cannon 243 | . . . 25 28 . 9 11 22 19 11 . 9 . 19 24 18 6 16 13 13 . . Launcher 176 | . . . . 21 . 21 17 31 13 4 . 5 . 9 11 13 3 10 13 5 . . Special 27 | . . . . . . . . . . . . . . 11 . 3 . 7 6 . . . Kinetic 65 | . 7 29 22 3 . . . 4 . . . . . . . . . . . . . . Thermal 181 | . . . 25 28 . 9 11 20 19 11 . 9 . 20 . 3 . 7 6 13 . . Explosive 88 | . . . . 21 . 21 . . . . . . . 2 11 13 3 10 7 . . . Electromagnetic 308 | . . . . . . . 17 43 27 15 . 14 . 29 48 36 12 35 27 5 . . Robot Hit Streak 43 | . 2 9 7 10 . 12 18 19 39 25 . 9 . 22 34 11 22 43 12 13 . . Robot Miss Streak 3 | . 2 2 2 3 . 3 2 1 2 . . 2 . 1 1 1 1 1 1 1 . . Penetration Max . | . . . . . . . . . . . . . . . . . . . . . . . Secondary Targets . | . . . . . . . . . . . . . . . . . . . . . . . Shots Hit Robots 448 | . 4 20 22 33 . 13 19 28 42 22 . 12 . 39 51 25 12 47 28 14 1 16 Core Hits 380 | . 2 9 14 51 . 15 22 22 12 13 . 12 . 21 44 24 21 32 35 22 1 8 Critical Hits 7 | . . . 1 . . 2 1 . . . . . . 1 . . 1 . . . . 1 Critical Kills 2 | . . . 1 . . . . . . . . . . . . . 1 . . . . . Critical Parts Destroyed 4 | . . . . . . 1 1 . . . . . . 1 . . . . . . . 1 Melee Attacks 74 | . . . . . . . . . . . . . . 16 14 . . 6 9 2 4 23 Impact . | . . . . . . . . . . . . . . . . . . . . . . . Slashing 45 | . . . . . . . . . . . . . . 14 14 . . 6 9 2 . . Piercing 29 | . . . . . . . . . . . . . . 2 . . . . . . 4 23 Sneak Attacks 3 | . . . . . . . . . . . . . . . 1 . . 1 . . 1 . Combat Hostiles . | . . . . . . . . . . . . . . . . . . . . . . . Follow-up Attacks . | . . . . . . . . . . . . . . . . . . . . . . . Damage Inflicted 23110 | . 33 177 345 2005 . 1016 1013 1406 1037 535 . 1991 . 1434 2827 1450 1148 2290 1460 2105 171 667 Guns 2269 | . 33 177 40 20 . . . 107 195 200 . 118 . 164 431 292 107 269 116 . . . Cannons 4960 | . . . 305 435 . 143 167 339 515 218 . 109 . 457 638 300 189 369 342 434 . . Explosions 14358 | . . . . 1550 . 873 846 960 327 117 . 1764 . 627 1572 858 852 1366 975 1671 . . Melee 1322 | . . . . . . . . . . . . . . 84 186 . . 214 . . 171 667 Ramming . | . . . . . . . . . . . . . . . . . . . . . . . Kinetic 270 | . 33 177 40 20 . . . . . . . . . . . . . . . . . . Thermal 7328 | . . . 305 559 . 143 350 394 515 218 . 1836 . 368 343 . . 162 216 1919 . . Explosive 7081 | . . . . 1426 . 873 . 516 . . . . . 378 1229 858 852 575 374 . . . Electromagnetic 7109 | . . . . . . . 663 496 522 317 . 155 . 604 1069 592 296 1339 870 186 . . Impact . | . . . . . . . . . . . . . . . . . . . . . . . Slashing 484 | . . . . . . . . . . . . . . 84 186 . . 214 . . . . Piercing 838 | . . . . . . . . . . . . . . . . . . . . . 171 667 Highest Corruption 1 | . . . . . . . . . . . . . . . . . . 1 . . 1 1 Average Corruption 1 | . . . . . . . . . . . . . . . . . . 1 . . 1 1 Corruption Purged . | . . . . . . . . . . . . . . . . . . . . . . . Overload Shots . | . . . . . . . . . . . . . . . . . . . . . . . Overflow Damage 1213 | . . . . 75 . 43 34 150 . . . 187 . 10 60 47 5 232 11 350 . 9 Projectiles 111 | . . . . . . 2 19 . . . . . . 6 . . . 49 . 35 . . Explosions 973 | . . . . 75 . 41 15 150 . . . 187 . . 60 47 5 67 11 315 . . Melee 129 | . . . . . . . . . . . . . . 4 . . . 116 . . . 9 Knockbacks . | . . . . . . . . . . . . . . . . . . . . . . . Impact . | . . . . . . . . . . . . . . . . . . . . . . . Kinetic . | . . . . . . . . . . . . . . . . . . . . . . . Secondary . | . . . . . . . . . . . . . . . . . . . . . . . Self-Inflicted Damage 477 | . . . . 29 . 38 8 18 . . . 244 . . . . . 80 . 60 . . Shots 11 | . . . . 2 . 3 1 2 . . . 1 . . . . . 1 . 1 . . Rammed 1 | . . . . . . . . . . . . . . . . . . . 1 . . . Targets Rammed 1 | . . . . . . . . . . . . . . . . . . . 1 . . . Kicked . | . . . . . . . . . . . . . . . . . . . . . . . Crushed . | . . . . . . . . . . . . . . . . . . . . . . . Highest Temperature 476 | . 3 6 177 476 . 332 219 344 243 118 . 102 . 148 90 192 111 387 225 156 . . Average Temperature 90 | . 3 3 63 166 . 114 80 98 99 37 . 33 . 55 31 68 54 151 84 80 . . Received Heat Transfer 1308 | . . . 9 75 . 63 45 129 108 . . 9 . 126 143 76 63 129 117 42 . 174 Effects 14 | . . . . 8 . 2 . 3 . . . . . . . . . 1 . . . . Shutdowns 5 | . . . . 3 . 1 . . . . . . . . . . . 1 . . . . Energy Bleed 3 | . . . . 1 . 1 . 1 . . . . . . . . . . . . . . Interference 1 | . . . . . . . . 1 . . . . . . . . . . . . . . Short Circuit 1 | . . . . . . . . 1 . . . . . . . . . . . . . . Damage (major) 4 | . . . . 4 . . . . . . . . . . . . . . . . . . Siege Activations . | . . . . . . . . . . . . . . . . . . . . . . . Robots Corrupted 10 | . . . . . . . . . 2 . . . . 3 1 2 . 2 . . . . Combat Hostiles 10 | . . . . . . . . . 2 . . . . 3 1 2 . 2 . . . . Parts Fried 19 | . . . . . . . . 4 . . . . . 4 2 2 1 3 3 . . . Impact Corruptions . | . . . . . . . . . . . . . . . . . . . . . . . Robots Melted 1 | . . . . . . . . . . . . . . . . . . . 1 . . . Combat Hostiles 1 | . . . . . . . . . . . . . . . . . . . 1 . . . Parts Melted 3 | . . . 1 . . . . 1 1 . . . . . . . . . . . . . Heat Transferred 7704 | . . . 555 927 . 259 446 672 900 400 . 200 . 960 300 . . 450 285 1350 . . Parts Sabotaged . | . . . . . . . . . . . . . . . . . . . . . . . Parts Stolen . | . . . . . . . . . . . . . . . . . . . . . . . Parts Stripped . | . . . . . . . . . . . . . . . . . . . . . . . Power Chain Reactions 15 | . . . . . . . 3 4 . . . . . 1 2 . . 1 3 1 . . Missiles Intercepted . | . . . . . . . . . . . . . . . . . . . . . . . Alert | -11 -10 -10 -9 -9 -9 -8 -8 -7 -7 -7 -7 -7 -6 -6 -6 -6 -6 -6 -5 -4 -3 -3 ------- Run | Scr Mat Min Mat Min Exi Min Mat Fac Low Low Zio Dee Pro Fac Ext Cet Arc Hub Fac Fac Res Qua Peak Influence 1152 | . 103 123 512 366 . 293 513 901 . . . . . 258 699 1051 682 853 1152 727 354 191 Average Influence 301 | . 37 46 254 242 . 80 239 515 . . . . . 98 359 725 587 358 752 480 336 78 Maximum Alert Level 4 | . . . 2 1 . 1 2 3 . . . . . 1 2 3 2 3 4 3 1 . Low Security (%) 50 | 100 100 100 37 45 . 93 50 9 . . . . . 94 27 . . 23 . 20 . 100 Level 1 21 | . . . 33 54 . 6 25 41 . . . . . 5 26 6 20 43 8 10 100 . Level 2 14 | . . . 29 . . . 23 10 . . . . . . 46 35 79 25 33 39 . . Level 3 13 | . . . . . . . . 38 . . . . . . . 57 . 7 53 29 . . Level 4 . | . . . . . . . . . . . . . . . . . . . 3 . . . Level 5 . | . . . . . . . . . . . . . . . . . . . . . . . High Security . | . . . . . . . . . . . . . . . . . . . . . . . Max Security . | . . . . . . . . . . . . . . . . . . . . . . . Squads Dispatched 22 | . 2 . 2 . . . 3 1 . . . . . 5 1 1 . 3 1 2 . 1 Investigation 8 | . 2 . 1 . . . 2 . . . . . . . 1 1 . . . 1 . . Extermination 2 | . . . . . . . . 1 . . . . . . . . . 1 . . . . Reinforcement 10 | . . . 1 . . . 1 . . . . . . 3 . . . 2 1 1 . 1 Assault . | . . . . . . . . . . . . . . . . . . . . . . . Garrison 2 | . . . . . . . . . . . . . . 2 . . . . . . . . Intercept . | . . . . . . . . . . . . . . . . . . . . . . . Construction Impeded 1 | . . . . . . . 1 . . . . . . . . . . . . . . . Haulers Reinforced . | . . . . . . . . . . . . . . . . . . . . . . . Stealth | -11 -10 -10 -9 -9 -9 -8 -8 -7 -7 -7 -7 -7 -6 -6 -6 -6 -6 -6 -5 -4 -3 -3 --------- Run | Scr Mat Min Mat Min Exi Min Mat Fac Low Low Zio Dee Pro Fac Ext Cet Arc Hub Fac Fac Res Qua Distress Signals 13 | . . . 1 . . . . . . . . . . 2 1 1 . 3 1 1 . 3 Communications Jammed . | . . . . . . . . . . . . . . . . . . . . . . . Distress Signals . | . . . . . . . . . . . . . . . . . . . . . . . Times Spotted 229 | . 2 3 16 31 . 7 12 6 7 2 . 4 . 16 18 24 26 15 18 8 . 14 Peak Tracking Total 17 | . 1 1 4 17 . 3 5 4 3 1 . 3 . 5 5 9 16 8 9 4 . 9 Tactical Retreats 13 | . . . . 3 . . 1 . . . . 1 . . 1 . . 2 3 . . 2 Traps | -11 -10 -10 -9 -9 -9 -8 -8 -7 -7 -7 -7 -7 -6 -6 -6 -6 -6 -6 -5 -4 -3 -3 ------- Run | Scr Mat Min Mat Min Exi Min Mat Fac Low Low Zio Dee Pro Fac Ext Cet Arc Hub Fac Fac Res Qua Traps Triggered 7 | . 1 . 1 . . . . 2 . . . . . 1 . . . 1 . . 1 . Indirectly 2 | . . . . . . . . . . . . . . 1 . . . 1 . . . . Trap Hack Attempts . | . . . . . . . . . . . . . . . . . . . . . . . Triggered . | . . . . . . . . . . . . . . . . . . . . . . . Disarmed 9 | . . . . . . . . 1 . . . . . . 4 . . . . 4 . . Reprogrammed 12 | . . . 6 . . . . . . . . . . . 6 . . . . . . . Reused 1 | . . . 1 . . . . . . . . . . . . . . . . . . . Traps Extracted . | . . . . . . . . . . . . . . . . . . . . . . . Installed 3 | . . 3 . . . . . . . . . . . . . . . . . . . . Triggered 2 | . . . 1 . . . . . 1 . . . . . . . . . . . . . Machines | -11 -10 -10 -9 -9 -9 -8 -8 -7 -7 -7 -7 -7 -6 -6 -6 -6 -6 -6 -5 -4 -3 -3 ---------- Run | Scr Mat Min Mat Min Exi Min Mat Fac Low Low Zio Dee Pro Fac Ext Cet Arc Hub Fac Fac Res Qua Machines Disabled 122 | . . . 3 6 . 8 2 43 . . . 3 . 5 5 1 1 16 19 8 . 2 Max in Single Turn 14 | . . . 2 4 . 2 1 13 . . . 1 . 2 1 1 1 14 10 4 . 1 Garrison Access 3 | . . . . . . . . . . . . . . 2 . . . . . 1 . . Network Hub 1 | . . . . . . . . . . . . . . . . . . 1 . . . . Machines Sabotaged . | . . . . . . . . . . . . . . . . . . . . . . . Garrisons Compromised . | . . . . . . . . . . . . . . . . . . . . . . . Overloaded Fab Kills . | . . . . . . . . . . . . . . . . . . . . . . . Fab Network Shutdowns 1 | . . . . . . . . . . . . . . . . . . . 1 . . . Hacking | -11 -10 -10 -9 -9 -9 -8 -8 -7 -7 -7 -7 -7 -6 -6 -6 -6 -6 -6 -5 -4 -3 -3 --------- Run | Scr Mat Min Mat Min Exi Min Mat Fac Low Low Zio Dee Pro Fac Ext Cet Arc Hub Fac Fac Res Qua Machines Accessed 68 | . 6 . 3 . . . 4 8 1 2 1 . . 9 8 3 1 4 3 8 3 4 Terminals 49 | . 4 . 3 . . . 2 7 . . . . . 4 8 3 . 4 2 5 3 4 Fabricators 4 | . . . . . . . . 1 . . . . . 1 . . . . 1 1 . . Repair Stations 2 | . . . . . . . . . . . . . . 2 . . . . . . . . Recycling Units 5 | . 2 . . . . . 2 . . . . . . . . . . . . 1 . . Scanalyzers . | . . . . . . . . . . . . . . . . . . . . . . . Garrison Access 3 | . . . . . . . . . . . . . . 2 . . . . . 1 . . Total Hacks 384 | . 23 . 17 . . . 20 48 1 2 8 . . 39 52 9 18 20 22 67 12 26 Successful 289 | . 17 . 14 . . . 17 33 1 2 8 . . 25 42 9 18 17 12 45 8 21 Failed 94 | . 6 . 3 . . . 3 15 . . . . . 14 9 . . 3 10 22 4 5 Catastrophic 12 | . 1 . . . . . . 1 . . . . . 3 . . . . 2 4 1 . Database Lockouts 1 | . . . . . . . . . . . . . . . 1 . . . . . . . Manual 261 | . 16 . 10 . . . 16 41 . . 13 . . 21 38 9 6 10 17 43 7 14 Terminals 325 | . 21 . 17 . . . 16 45 . . . . . 29 52 9 . 20 21 57 12 26 Fabricators 6 | . . . . . . . . 3 . . . . . 1 . . . . 1 1 . . Repair Stations 5 | . . . . . . . . . . . . . . 5 . . . . . . . . Recycling Units 8 | . 2 . . . . . 4 . . . . . . . . . . . . 2 . . Scanalyzers . | . . . . . . . . . . . . . . . . . . . . . . . Garrison Access 11 | . . . . . . . . . . . . . . 4 . . . . . 7 . . Terminal Hacks 164 | . 7 . 8 . . . 9 18 1 2 8 . . 12 24 1 18 10 5 26 3 12 Record 31 | . . . . . . . . 3 . . . . . 6 . . 18 1 . . 1 2 Part Schematic 19 | . . . . . . . . 2 . . 8 . . 2 6 . . 1 . . . . Robot Schematic 1 | . . . . . . . . . . . . . . . 1 . . . . . . . Robot Analysis 2 | . . . . . . . . . . . . . . . . . . . 1 1 . . Prototype ID Bank 20 | . . . 1 . . . 1 4 . . . . . 1 4 . . 3 1 2 . 3 Open Door 10 | . . . . . . . . . 1 2 . . . . 5 1 . . . . 1 . Level Access Points 7 | . 1 . . . . . 1 . . . . . . 1 1 . . . 1 2 . . Branch Access Points 10 | . 1 . 1 . . . 1 1 . . . . . 1 1 . . 1 . 1 1 1 Emergency Access Points 5 | . . . 1 . . . . 1 . . . . . . . . . 1 . 2 . . Terminal Index 4 | . 1 . . . . . 1 . . . . . . . . . . . . 2 . . Fabricator Index 1 | . . . . . . . . . . . . . . . . . . . . 1 . . Repair Station Index 1 | . . . . . . . . . . . . . . . . . . . . 1 . . Recycling Unit Index 1 | . . . . . . . 1 . . . . . . . . . . . . . . . Alert Level 4 | . . . . . . . . 1 . . . . . . . . . . . 2 . 1 Unreport Threat 8 | . . . . . . . . . . . . . . . . . . . 2 4 . 2 Locate Traps 13 | . 1 . 2 . . . 1 3 . . . . . . 2 . . 1 . 3 . . Disarm Traps 3 | . . . . . . . . 1 . . . . . . 1 . . . . 1 . . Reprogram Traps 2 | . . . 1 . . . . . . . . . . . 1 . . . . . . . Dispatch Records 2 | . 1 . . . . . . 1 . . . . . . . . . . . . . . Recall Investigation 2 | . . . 1 . . . . . . . . . . . 1 . . . . . . . Recall Reinforcements 3 | . . . . . . . 1 . . . . . . . . . . 1 . . . 1 Hauler Manifests 1 | . . . . . . . . . . . . . . . . . . . . 1 . . Registered Components 1 | . . . . . . . . . . . . . . 1 . . . . . . . . Registered Prototypes 3 | . 1 . . . . . . . . . . . . . . . . . . 1 . 1 Zone Layout 10 | . 1 . 1 . . . 2 1 . . . . . . 1 . . 1 . 2 . 1 Fabricator Hacks 6 | . . . . . . . . 3 . . . . . 1 . . . . 1 1 . . Load Schematic 1 | . . . . . . . . 1 . . . . . . . . . . . . . . Build 5 | . . . . . . . . 2 . . . . . 1 . . . . 1 1 . . Repair Station Hacks 4 | . . . . . . . . . . . . . . 4 . . . . . . . . Scan Component 2 | . . . . . . . . . . . . . . 2 . . . . . . . . Repair 2 | . . . . . . . . . . . . . . 2 . . . . . . . . Recycling Unit Hacks 2 | . . . . . . . 2 . . . . . . . . . . . . . . . Process 1 | . . . . . . . 1 . . . . . . . . . . . . . . . Retrieve Matter 1 | . . . . . . . 1 . . . . . . . . . . . . . . . Scanalyzer . | . . . . . . . . . . . . . . . . . . . . . . . Garrison Access Hacks 4 | . . . . . . . . . . . . . . 2 . . . . . 2 . . Seal Access 3 | . . . . . . . . . . . . . . 2 . . . . . 1 . . Coupler Status 1 | . . . . . . . . . . . . . . . . . . . . 1 . . Unauthorized Hacks 235 | . 22 . 12 . . . 13 31 . . . . . 13 36 16 . 14 13 34 11 20 Terminals 102 | . 8 . 6 . . . 4 12 . . . . . 6 18 8 . 7 6 13 5 9 Track 29 | . 3 . 2 . . . 1 3 . . . . . 1 6 1 . 2 2 5 1 2 Assimilate 4 | . . . . . . . . . . . . . . . 1 1 . . 1 . . 1 Botnet 45 | . 3 . 3 . . . 2 7 . . . . . 4 7 2 . 3 2 5 3 4 Detonate 6 | . . . 1 . . . . 2 . . . . . . 1 1 . . . 1 . . Disrupt 8 | . 1 . . . . . . . . . . . . . 3 1 . 1 1 . . 1 Operators 9 | . 1 . . . . . 1 . . . . . . 1 . 1 . 1 . 2 1 1 Sabotage 1 | . . . . . . . . . . . . . . . . 1 . . . . . . Fabricators . | . . . . . . . . . . . . . . . . . . . . . . . Repair Stations . | . . . . . . . . . . . . . . . . . . . . . . . Recycling Units 5 | . 2 . . . . . 2 . . . . . . . . . . . . 1 . . Tunnel 5 | . 2 . . . . . 2 . . . . . . . . . . . . 1 . . Scanalyzers . | . . . . . . . . . . . . . . . . . . . . . . . Garrison Access 2 | . . . . . . . . . . . . . . . . . . . . 2 . . Broadcast 1 | . . . . . . . . . . . . . . . . . . . . 1 . . Reprogram 1 | . . . . . . . . . . . . . . . . . . . . 1 . . Data Cores Recovered 2 | . . . . . . . . 1 . . . . . . . . . 1 . . . . Used 2 | . . . . . . . . 1 . . . . . . . . . 1 . . . . Hacking Detections 43 | . 4 . 3 . . . 2 7 . . . . . 6 5 . . 4 2 5 2 3 Full Trace Events . | . . . . . . . . . . . . . . . . . . . . . . . Feedback Events . | . . . . . . . . . . . . . . . . . . . . . . . Feedback Blocked . | . . . . . . . . . . . . . . . . . . . . . . . Robot Schematics Acquired 1 | . . . . . . . . . . . . . . . 1 . . . . . . . Robots Built . | . . . . . . . . . . . . . . . . . . . . . . . Matter . | . . . . . . . . . . . . . . . . . . . . . . . Time . | . . . . . . . . . . . . . . . . . . . . . . . Total Robot Build Rating . | . . . . . . . . . . . . . . . . . . . . . . . Part Schematics Acquired 19 | . . . . . . . . 2 . . 8 . . 2 6 . . 1 . . . . Parts Built 3 | . . . . . . . . . . . . . . 2 . . . . 1 . . . Matter 1192 | . . . . . . . . 446 . . . . . 256 . . . . 212 278 . . Time 596 | . . . . . . . . 223 . . . . . 128 . . . . 106 139 . . Total Part Build Rating 22 | . . . . . . . . . . . . . . 16 . . . . 6 . . . Parts Repaired 2 | . . . . . . . . . . . . . . 2 . . . . . . . . Time 38 | . . . . . . . . . . . . . . 38 . . . . . . . . Parts Recycled . | . . . . . . . . . . . . . . . . . . . . . . . Recycled Matter 327 | . . . . . . . 327 . . . . . . . . . . . . . . . Retrieved Matter 338 | . . . . . . . 338 . . . . . . . . . . . . . . . Retrieved Components . | . . . . . . . . . . . . . . . . . . . . . . . Parts Scanalyzed . | . . . . . . . . . . . . . . . . . . . . . . . Part Schematics Acquired . | . . . . . . . . . . . . . . . . . . . . . . . Parts Damaged . | . . . . . . . . . . . . . . . . . . . . . . . Bothacking | -11 -10 -10 -9 -9 -9 -8 -8 -7 -7 -7 -7 -7 -6 -6 -6 -6 -6 -6 -5 -4 -3 -3 ------------ Run | Scr Mat Min Mat Min Exi Min Mat Fac Low Low Zio Dee Pro Fac Ext Cet Arc Hub Fac Fac Res Qua Used RIF Installer . | . . . . . . . . . . . . . . . . . . . . . . . Robots Hacked 1 | . . . . . . . . . . . . . . . . . . . 1 . . . Non-combat . | . . . . . . . . . . . . . . . . . . . . . . . Combat 1 | . . . . . . . . . . . . . . . . . . . 1 . . . Robot Hacks Applied 1 | . . . . . . . . . . . . . . . . . . . 1 . . . parse_system 1 | . . . . . . . . . . . . . . . . . . . 1 . . . Relay Couplers Released . | . . . . . . . . . . . . . . . . . . . . . . . Robots Rewired . | . . . . . . . . . . . . . . . . . . . . . . . Allies Hacked . | . . . . . . . . . . . . . . . . . . . . . . . Hacks Repelled . | . . . . . . . . . . . . . . . . . . . . . . . Allies | -11 -10 -10 -9 -9 -9 -8 -8 -7 -7 -7 -7 -7 -6 -6 -6 -6 -6 -6 -5 -4 -3 -3 -------- Run | Scr Mat Min Mat Min Exi Min Mat Fac Low Low Zio Dee Pro Fac Ext Cet Arc Hub Fac Fac Res Qua Total Allies 31 | . . 5 . . . . . . . . 4 . . 3 6 5 3 . 1 3 . 1 Largest Group 10 | . . 5 5 2 . . . . . . 4 3 . 3 5 9 10 . 1 4 1 1 Highest-Rated Group 950 | . . 86 86 47 . . . . . . 155 117 . 93 286 726 950 . 26 167 47 26 Highest-Rated Ally 156 | . . 31 31 31 . . . . . . 40 40 . 31 156 156 156 . 26 47 47 26 Total Orders 11 | . . . . . . . . . . . . . . 1 . . . . 2 7 . 1 STAY 1 | . . . . . . . . . . . . . . . . . . . . . . 1 GOTO 2 | . . . . . . . . . . . . . . . . . . . . 2 . . FOLLOW 3 | . . . . . . . . . . . . . . . . . . . 1 2 . . EXPLORE 5 | . . . . . . . . . . . . . . 1 . . . . 1 3 . . Ally Attacks 222 | . . 3 20 26 . . . . . . . . . 19 29 78 19 . . 27 1 . Total Damage 4589 | . . 31 210 290 . . . . . . . . . 300 626 1793 787 . . 512 40 . Kills 43 | . . 2 4 8 . . . . . . . . . 2 4 14 5 . . 4 . . Allies Corrupted 3 | . . . 2 . . . . . . . . . . . 1 . . . . . . . Allies Melted . | . . . . . . . . . . . . . . . . . . . . . . . Intel | -11 -10 -10 -9 -9 -9 -8 -8 -7 -7 -7 -7 -7 -6 -6 -6 -6 -6 -6 -5 -4 -3 -3 ------- Run | Scr Mat Min Mat Min Exi Min Mat Fac Low Low Zio Dee Pro Fac Ext Cet Arc Hub Fac Fac Res Qua Robot Analysis Total 2 | . . . . . . . . . . . . . . . . . . . 1 1 . . Derelict Logs Recovered 6 | . . 2 . 1 . . . . 1 2 . . . . . . . . . . . . Drone Launches 10 | . . . . . . . . . . . . . . 6 . . . . 2 2 . . Drone Recoveries . | . . . . . . . . . . . . . . . . . . . . . . . Exploration | -11 -10 -10 -9 -9 -9 -8 -8 -7 -7 -7 -7 -7 -6 -6 -6 -6 -6 -6 -5 -4 -3 -3 ------------- Run | Scr Mat Min Mat Min Exi Min Mat Fac Low Low Zio Dee Pro Fac Ext Cet Arc Hub Fac Fac Res Qua Turns Passed 9437 | 29 347 490 365 498 485 592 247 890 484 395 430 438 375 806 373 370 109 380 430 296 179 429 Spaces Moved 12916 | 37 392 639 385 557 563 761 416 1603 753 627 861 568 412 1231 338 292 218 495 552 378 321 517 Core 1019 | 15 232 639 95 . . . . . . . . . . . . . . . . 38 . . Treads . | . . . . . . . . . . . . . . . . . . . . . . . Legs . | . . . . . . . . . . . . . . . . . . . . . . . Wheels 175 | 22 153 . . . . . . . . . . . . . . . . . . . . . Hover 7 | . 7 . . . . . . . . . . . . . . . . . . . . . Flight 11715 | . . . 290 557 563 761 416 1603 753 627 861 568 412 1231 338 292 218 495 552 340 321 517 Fastest Speed 29 | 50 50 50 40 37 37 37 37 37 37 37 37 37 37 34 34 34 34 34 34 34 37 29 Average Speed 38 | 67 61 50 42 39 37 37 37 37 37 37 37 37 37 35 34 34 34 34 36 43 37 30 Slowest Speed 117 | 80 80 50 50 40 37 37 37 37 37 37 37 37 37 37 34 34 34 34 40 117 37 37 Overloaded Moves . | . . . . . . . . . . . . . . . . . . . . . . . Propulsion Burnouts . | . . . . . . . . . . . . . . . . . . . . . . . Robots Hopped 39 | . . . 2 2 . 4 11 1 . 1 . . . 5 . . . 9 4 . . . Cave-ins Triggered . | . . . . . . . . . . . . . . . . . . . . . . . Exploration Rate (%) 61 | 3 56 96 36 81 92 98 30 32 95 94 91 77 70 42 62 91 100 48 20 19 14 64 Regions Visited 22 Branch Regions 14 Pre-discovered Areas 10 | . 2 2 . . . . 2 . . 1 2 . . . . . . . . 1 . . Known Exits Taken 21 | . 1 1 1 1 1 1 1 1 1 1 1 1 1 1 1 1 1 1 1 1 1 . Unknown Exits Taken 1 | 1 . . . . . . . . . . . . . . . . . . . . . . Scrap Searched 19 | . . 2 . 2 . 3 . . 4 3 4 . 1 . . . . . . . . . Spaces Dug 61 | . . . . . . 17 . 1 . . . . . 13 11 . . 1 9 2 3 4 Terrain Destroyed 1407 | . . . 35 172 . 171 14 338 . 1 . 7 . 32 138 87 26 216 67 96 3 4 Melee 43 | . . . . . . . . . . . . . . 13 11 . . 1 9 2 3 4 Projectile 8 | . . . . 1 . 1 . 1 . 1 . 3 . . . . . . . 1 . . AOE 1356 | . . . 35 171 . 170 14 337 . . . 4 . 19 127 87 26 215 58 93 . . Actions | -11 -10 -10 -9 -9 -9 -8 -8 -7 -7 -7 -7 -7 -6 -6 -6 -6 -6 -6 -5 -4 -3 -3 --------- Run | Scr Mat Min Mat Min Exi Min Mat Fac Low Low Zio Dee Pro Fac Ext Cet Arc Hub Fac Fac Res Qua Total 16644 | 39 487 785 540 781 839 1037 468 1832 916 766 972 775 633 1521 521 516 239 643 728 490 373 743 Wait 3007 | . 82 107 120 176 277 256 15 149 130 105 110 194 217 213 126 186 11 120 139 74 38 162 Move 12823 | 36 391 638 380 552 562 753 396 1600 752 624 860 567 411 1220 337 291 217 478 544 377 320 517 Hop 33 | . . . 2 2 . 3 8 1 . 1 . . . 5 . . . 7 4 . . . Pick Up 18 | . . . 2 2 . 1 1 . 2 1 1 . . 1 . . . . 2 2 1 2 Fast Attach 73 | 3 6 3 4 1 . 1 2 9 . 4 . . 2 12 . . . . 2 6 3 15 Attach 11 | . . . . 2 . . . . . . . . 1 . . 1 . . 4 1 1 1 Detach 6 | . . . . . . . . . . . . . . 2 . . . . 2 1 . 1 Swap 19 | . . 1 . . . . 4 1 . 2 . . . 6 . . . 1 1 2 1 . Drop 71 | . 1 3 2 1 . 2 3 8 1 7 1 . 2 11 . . . . 1 9 5 14 Fire 360 | . 7 29 26 31 . 21 17 51 25 11 . 9 . 25 27 24 6 21 19 11 . . Melee 74 | . . . . . . . . . . . . . . 16 14 . . 6 9 2 4 23 Ram . | . . . . . . . . . . . . . . . . . . . . . . . Kick . | . . . . . . . . . . . . . . . . . . . . . . . Crush . | . . . . . . . . . . . . . . . . . . . . . . . Escape Stasis 10 | . . . . . . . . 10 . . . . . . . . . . . . . . Rewire . | . . . . . . . . . . . . . . . . . . . . . . . Trap 3 | . . 3 . . . . . . . . . . . . . . . . . . . . Miscellaneous 136 | . . 1 4 14 . . 22 3 6 11 . 5 . 10 17 14 5 10 1 5 . 8 Route ------- -11/Scrapyard -10/Materials (discovered 5 exits: *Mat x3 / *Min x2) -10/Mines (discovered 2 exits: *Mat x2) -9/Materials (discovered 2 exits: *Mat / *Min) -9/Mines (discovered 3 exits: *Mat x2 / *Exi) -9/Exiles -8/Mines (discovered 2 exits: *Mat x2) -8/Materials (discovered 3 exits: *Fac x3) -7/Factory (discovered 5 exits: *Fac x2 / *Sto / *Low x2) -7/Lower Caves -7/Lower Caves (discovered 2 exits: *Fac / *Zio) -7/Zion -7/Deep Caves -6/Proximity Caves -6/Factory (discovered 8 exits: *Fac x4 / Low x2 / *Ext x2) -6/Extension (discovered 3 exits: *Fac x2 / *Cet) -6/Cetus (discovered 2 exits: *Fac / *Arc) -6/Archives (discovered 3 exits: *Fac / *Hub x2) -6/Hub_04(d) (discovered 2 exits: *Fac x2) -5/Factory (discovered 5 exits: *Fac x4 / *Upp) -4/Factory (discovered 6 exits: *Res x4 / Upp x2) -3/Research (discovered 3 exits: Arm / *Qua x2) -3/Quarantine History --------- Turn | Location | Event 15 | -11/Scrapyard | Discovered new exit (range 16) 30 | -11/Scrapyard | Entered Materials 64 | -10/Materials | Upgraded with Utility slot (x2) 64 | -10/Materials | Identified exit to Mines 173 | -10/Materials | Discovered new exit (range 13) 202 | -10/Materials | Identified exit to Materials 368 | -10/Materials | Build established: Hacker-Mutant 377 | -10/Materials | Entered Mines 474 | -10/Mines | Assisted by bots powering up and referring to "LRC-V3" 597 | -10/Mines | Found a damaged Exp. Sensor Array with a note attached 618 | -10/Mines | Discovered exit to Materials (range 7) 680 | -10/Mines | Discovered exit to Materials (range 7) 771 | -10/Mines | Found a hidden stash of uninstalled traps 833 | -10/Mines | Found Prototype Device 833 | -10/Mines | Identified Exp. Sensor Array 867 | -10/Mines | Entered Materials 867 | -9/Materials | Accompanied by 5 allies 869 | -9/Materials | Reached level 2 869 | -9/Materials | Reached level 3 869 | -9/Materials | Reached level 4 869 | -9/Materials | Upgraded with Weapon slot (x1) 872 | -9/Materials | Led the pair of lost Derelicts to an unsafe place 970 | -9/Materials | Discovered new exit (range 17) 1016 | -9/Materials | Identified exit to Mines 1083 | -9/Materials | Reached level 5 1085 | -9/Materials | Upgraded with Utility slot (x1) 1106 | -9/Materials | Build established: Hacker-Scout 1232 | -9/Materials | Entered Mines 1232 | -9/Mines | Accompanied by 2 allies 1240 | -9/Mines | Discovered new exit (range 15) 1267 | -9/Mines | Joined a pair of Derelicts in attacking an 0b10 outpost 1323 | -9/Mines | Identified exit to Materials 1370 | -9/Mines | Discovered exit to Materials (range 17) 1383 | -9/Mines | Learned location of 1 exit from Proximity Caves 1422 | -9/Mines | Deemed a non-threat by the Exiles lab entrance 1422 | -9/Mines | Discovered new exit (range 5) 1423 | -9/Mines | Identified exit to Exiles 1444 | -9/Mines | Reached level 6 1451 | -9/Mines | Upgraded with Propulsion slot (x1) 1451 | -9/Mines | Upgraded with Utility slot (x1) 1530 | -9/Mines | Assembled infested the area 1610 | -9/Mines | Destroyed 16 combat bots 1672 | -9/Mines | Reached level 7 1730 | -9/Mines | Entered Exiles 1739 | -9/Exiles | Met 8R-AWN 1746 | -9/Exiles | Met EX-HEX 1765 | -9/Exiles | Met EX-DEC 1777 | -9/Exiles | Visited The Gauntlet 1952 | -9/Exiles | Discovered new exit (range 15) 1973 | -9/Exiles | Identified exit to Mines 1993 | -9/Exiles | Met EX-BIN 2215 | -9/Exiles | Entered Mines 2219 | -8/Mines | Discovered exit to Materials (range 12) 2397 | -8/Mines | Discovered exit to Materials (range 12) 2670 | -8/Mines | Reached level 8 2807 | -8/Mines | Entered Materials 2809 | -8/Materials | Reached level 9 2811 | -8/Materials | Upgraded with Utility slot (x1) 2882 | -8/Materials | Discovered new exit (range 18) 2919 | -8/Materials | Identified exit to Factory 2958 | -8/Materials | Reached level 10 3054 | -8/Materials | Entered Factory 3056 | -7/Factory | Reached level 11 3439 | -7/Factory | Reached level 12 3443 | -7/Factory | Upgraded with Weapon slot (x1) 3445 | -7/Factory | Discovered new exit (range 14) 3461 | -7/Factory | Identified exit to Storage 3461 | -7/Factory | Identified exit to Lower Caves 3463 | -7/Factory | Identified exit to Factory 3584 | -7/Factory | Reached level 13 3598 | -7/Factory | Discovered exit to Factory (range 19) 3944 | -7/Factory | Entered Lower Caves 4013 | -7/Lower Caves | Reached level 14 4097 | -7/Lower Caves | Spotted B-75 Beast 4140 | -7/Lower Caves | Destroyed B-75 Beast 4238 | -7/Lower Caves | Encountered a Warlord checkpoint 4363 | -7/Lower Caves | Discovered new exit (range 18) 4401 | -7/Lower Caves | Identified exit to Lower Caves 4428 | -7/Lower Caves | Entered another Lower Caves area 4438 | -7/Lower Caves | Discovered exit to Factory (range 9) 4464 | -7/Lower Caves | Encountered a Warlord checkpoint 4535 | -7/Lower Caves | Learned 12 Factory zone layouts 4701 | -7/Lower Caves | Discovered new exit (range 24) 4748 | -7/Lower Caves | Identified exit to Zion 4777 | -7/Lower Caves | Learned location of Zion (-7) 4823 | -7/Lower Caves | Entered Zion 4825 | -7/Zion | Reached level 15 4886 | -7/Zion | Learned location of Recycling (-7) 4914 | -7/Zion | Received a hallucinogenic algorithm 5002 | -7/Zion | Acquired unknown access codes intercepted by a Zionite 5077 | -7/Zion | Imprinted 5079 | -7/Zion | Declared Zion's savior 5180 | -7/Zion | Discovered new exit (range 19) 5218 | -7/Zion | Opened final containment barrier to the Deep Caves 5225 | -7/Zion | Saw the warning signs outside the Deep Caves entrance 5226 | -7/Zion | Identified exit to Deep Caves 5253 | -7/Zion | Entered Deep Caves 5253 | -7/Deep Caves | Accompanied by 4 allies 5339 | -7/Deep Caves | Z-Facility disabled 5354 | -7/Deep Caves | Attacked by Z-Imprinter 5361 | -7/Deep Caves | Destroyed Z-Imprinter 5411 | -7/Deep Caves | Discovered new exit (range 19) 5455 | -7/Deep Caves | Identified exit to Proximity Caves 5522 | -7/Deep Caves | Spotted as-63455 5691 | -7/Deep Caves | Entered Proximity Caves 5693 | -6/Proximity Caves | Reached level 16 5700 | -6/Proximity Caves | Upgraded with Weapon slot (x1) 5852 | -6/Proximity Caves | Spotted B-75 Beast 6066 | -6/Proximity Caves | Entered Factory 6068 | -6/Factory | Reached level 17 6069 | -6/Factory | Upgraded with Propulsion slot (x1) 6105 | -6/Factory | Spotted B-75 Beast 6237 | -6/Factory | Identified exit to Factory 6237 | -6/Factory | Identified exit to Lower Caves 6237 | -6/Factory | Identified exit to Extension 6249 | -6/Factory | Allied Derelicts emerged from ambush trap array 6340 | -6/Factory | Reached level 18 6371 | -6/Factory | Repaired EMP Blaster 6603 | -6/Factory | Fabricated Lgt. Particle Reactor (x2) 6637 | -6/Factory | Repaired Lightning Gun 6872 | -6/Factory | Entered Extension 6880 | -6/Extension | Disrupted transfer network 6889 | -6/Extension | Rescued a captive Derelict 6891 | -6/Extension | Rescued a captive Derelict 7052 | -6/Extension | Reached level 19 7083 | -6/Extension | Rescued A7 7084 | -6/Extension | Rescued a captive Derelict 7084 | -6/Extension | Rescued a captive Derelict 7158 | -6/Extension | Central database locked down 7158 | -6/Extension | Rescued a captive Derelict 7175 | -6/Extension | Identified exit to Cetus 7245 | -6/Extension | Entered Cetus 7245 | -6/Cetus | Accompanied by 5 allies 7249 | -6/Cetus | Upgraded with Weapon slot (x1) 7250 | -6/Cetus | Acquired a Cetus Manufacturing Module code from A7 7251 | -6/Cetus | Spotted Cetus Guard 7251 | -6/Cetus | Spotted Cetus Guard 7251 | -6/Cetus | Spotted Cetus Guard 7251 | -6/Cetus | Spotted Cetus Guard 7266 | -6/Cetus | Destroyed Cetus Guard 7271 | -6/Cetus | Destroyed Cetus Guard 7275 | -6/Cetus | Allies destroyed Cetus Guard 7282 | -6/Cetus | Allies destroyed Cetus Guard 7307 | -6/Cetus | Destroyed 7 combat bots 7342 | -6/Cetus | Started Cetus Manufacturing Module 7367 | -6/Cetus | Manufactured an Enhanced Grunt 7392 | -6/Cetus | Manufactured an Enhanced Grunt 7410 | -6/Cetus | Escorted A7 to Cetus Mainframe 7417 | -6/Cetus | Manufactured an Enhanced Grunt 7442 | -6/Cetus | Manufactured an Enhanced Grunt 7467 | -6/Cetus | Manufactured an Enhanced Grunt 7491 | -6/Cetus | Discovered new exit (range 18) 7522 | -6/Cetus | Discovered exit to Factory (range 24) 7523 | -6/Cetus | Spotted Cetus Guard 7523 | -6/Cetus | Spotted Cetus Guard 7526 | -6/Cetus | Spotted Cetus Guard 7526 | -6/Cetus | Spotted Cetus Guard 7527 | -6/Cetus | Reached level 20 7527 | -6/Cetus | Allies destroyed Cetus Guard 7532 | -6/Cetus | Allies destroyed Cetus Guard 7535 | -6/Cetus | Destroyed Cetus Guard 7541 | -6/Cetus | Allies destroyed Cetus Guard 7546 | -6/Cetus | Scared off Revision 17 7564 | -6/Cetus | Identified exit to Archives 7615 | -6/Cetus | Entered Archives 7615 | -6/Archives | Accompanied by 7 allies 7620 | -6/Archives | Discovered exit to Factory (range 22) 7620 | -6/Archives | Received a hacking code to weaken MAIN.C 7621 | -6/Archives | Met Zhirov 7624 | -6/Archives | Discovered new exit (range 19) 7626 | -6/Archives | Read partially decrypted archive contents 7627 | -6/Archives | Reinforcements dispatched to Archives 7653 | -6/Archives | Discovered new exit (range 18) 7663 | -6/Archives | Unable to access archive contents 7663 | -6/Archives | Unable to access archive contents 7668 | -6/Archives | Destroyed 7 combat bots 7672 | -6/Archives | Reinforcements dispatched to Archives 7674 | -6/Archives | Zhirov warped through subspace 7676 | -6/Archives | Read partially decrypted archive contents 7686 | -6/Archives | Identified exit to Hub_04(d) 7692 | -6/Archives | Zhirov detonated Archives 7724 | -6/Archives | Entered Hub_04(d) 7743 | -6/Hub_04(d) | Discovered exit to Factory (range 18) 7896 | -6/Hub_04(d) | Discovered exit to Factory (range 8) 7917 | -6/Hub_04(d) | Disrupted transfer network 8076 | -6/Hub_04(d) | Network Hub disabled 8076 | -6/Hub_04(d) | Reached level 21 8080 | -6/Hub_04(d) | Spotted B-75 Beast 8104 | -6/Hub_04(d) | Entered Factory 8105 | -5/Factory | Identified exit to Upper Caves 8165 | -5/Factory | Discovered new exit (range 22) 8235 | -5/Factory | Core integrity fell below 50% 8266 | -5/Factory | Fabricated Adv. Cooling System? 8269 | -5/Factory | Lost 4 parts (2n2w) 8308 | -5/Factory | Local fabrication network quarantined 8324 | -5/Factory | Identified exit to Factory 8336 | -5/Factory | Reached level 22 8534 | -5/Factory | Entered another Factory area 8534 | -4/Factory | Accompanied by 3 allies 8535 | -4/Factory | Core integrity fell below 50% 8536 | -4/Factory | Reached level 23 8549 | -4/Factory | Identified exit to Upper Caves 8549 | -4/Factory | Identified exit to Research 8626 | -4/Factory | Reached level 24 8628 | -4/Factory | Upgraded with Utility slot (x1) 8830 | -4/Factory | Entered Research 8830 | -3/Research | Accompanied by 1 ally 8831 | -3/Research | Core integrity fell below 50% 8832 | -3/Research | Reached level 25 8832 | -3/Research | Upgraded with Propulsion slot (x1) 8921 | -3/Research | Core integrity fell below 20% 8952 | -3/Research | Identified exit to Armory 8952 | -3/Research | Identified exit to Quarantine 9009 | -3/Research | Entered Quarantine 9011 | -3/Quarantine | Reached level 26 9138 | -3/Quarantine | Upgraded with Propulsion slot (x1) 9194 | -3/Quarantine | Found Alien Energy Cannon 9194 | -3/Quarantine | Identified Core Cannon 9375 | -3/Quarantine | Found Alien Artifact 9375 | -3/Quarantine | Identified Terrabomb 9375 | -3/Quarantine | Used Terrabomb 9385 | -3/Quarantine | Found Adv. Powered Armor 9438 | -3/Quarantine | Destroyed by G-67 Veteran with Plasma Rifle Last Messages --------------- Dropped Imp. Medium Armor Plating. Acquired Adv. Powered Armor. W-44 Eye distress signal alerts nearby ally. G-67 Veteran destroyed. G-67 Veteran suffers critical hit. Destroyed Flexi-carbon Leg. G-67 Veteran destroyed. Used Protomatter to restore core integrity (+180, depleted) G-67 Veteran destroyed. The unstable cave ceiling collapses. Plasma Rifle crushed. G-67 Veteran destroyed. The unstable cave ceiling collapses. G-67 Veteran crushed by falling debris. 88 Matter crushed. The unstable cave ceiling collapses. G-73 Enforcer crushed by falling debris. Adv. Heat Sink crushed. Destroyed Adv. Heat Sink. [Achievement: I Think I Know What's Going On] Map ----- +----------------------------------------------------+ | # # # | | # #### ##########+###### # | | # #### ####### # # | | # #### ####### # # | | # #### ####### "" # # | | # #### ####### " + # | | ############### # # " """ # # | | ############### # # """/" # # | | ############### # # """"" # # | | ############### + """ # # | | ############### # """ ########### | | ############### # """ ## / | | ############### # ## """# # | | ############### ##+##### """# | | ############### ##### R"# | | ############### ##### """# | | ########! # ##### "" # | | ######## """ # ##### # # | | ######## ""R" + + # # | | ######## "" " # ###### # # | | ########w # ############### # | | ######## | # ## # # | | ##########+######### # # | | ###?###### ######### # # | | ########## ##%###### # # | | ##########*#g@g##### """"""""" # + | | ##########[[##=##### """ """ + # | | ##########=###=##### # + | | ########## ######### # o# | | ########## ######### # # | | ###### ###/######### # # | | " ###### # # | | " !"##### # # | | " ! " ################ # | | " !" ############## # | | " " """"############# # | | " [ " " ######## # | | """""+"""" " ######## # | | " + " " ######## # | | " """" """ # # | | " " "R"!""" # # | | " " " """ # # | | " " " " T # # | | " " " " # ### | | """""""""""" " # " ### | | " " " ###"#"u### ### | | " """" " """""" #?# | | " """!" " " # ### | | " """"" " " "" # ### | | " """"" " " "T " ### | +----------------------------------------------------+ Best States ------------- Heat Dissipation 157 Energy Generation 43 Energy Capacity 430 Matter Stores 450 Matter Capacity 450 Sight Range 19 Robot Scan Range 52 Terrain Scan Range 24 Terrain Scan Density 710 Armor Coverage 400 Resistance: KI 40 Resistance: TH 40 Resistance: EX 40 Resistance: EM 20 Resistance: I 20 Resistance: S 20 Resistance: P 20 Evasion (%) 64 Targeting Accuracy 8 Overload Amplification 75 Offensive Hacking 37 Defensive Hacking 22 Item Schematics ----------------- Nuclear Pulse Array | -7/Factory | Hacked Mass Driver | -7/Factory | Hacked Enh. Flamer | -7/Zion | Free Flamer | -7/Zion | Free Slug Cannon | -7/Zion | Free Battle Rifle | -7/Zion | Free Riot Gun | -7/Zion | Free Hvy. Riot Gun | -7/Zion | Free Battle Cannon | -7/Zion | Free Bore Cannon | -7/Zion | Free Adv. EMP Blaster | -6/Factory | Hacked Aerolev Unit | -6/Factory | Hacked Adv. Assault Cannon | -6/Extension | Hacked Proton Missile Launcher | -6/Extension | Hacked Salvage Targeting Computer | -6/Extension | Hacked Remote Shield | -6/Extension | Hacked Adv. Terrain Scanner | -6/Extension | Hacked Lrn. Terrain Scanner | -6/Extension | Hacked Adv. Thermal Shield | -6/Hub_04(d) | Hacked Robot Schematics ------------------ G-50 Soldier | -6/Extension | Hacked Fabricated ------------ Lgt. Particle Reactor | x2 | -6/Factory | Preloaded Adv. Cooling System | x1 | -5/Factory | Preloaded Alien Tech Used ----------------- Core Cannon Terrabomb Achievements -------------- Are We The Baddies? I Think I Know What's Going On It Was An Accident, I Swear More Dakka Please Signs Are For Wimps Challenges ------------ None RPGLIKE | -11 -10 -10 -9 -9 -9 -8 -8 -7 -7 -7 -7 -7 -6 -6 -6 -6 -6 -6 -5 -4 -3 -3 --------- Run | Scr Mat Min Mat Min Exi Min Mat Fac Low Low Zio Dee Pro Fac Ext Cet Arc Hub Fac Fac Res Qua Levels Raised 25 | . . . 4 2 . 1 2 3 1 . 1 . 1 2 1 1 . 1 1 2 1 1 XP Earned 42902 | 4000 405 906 5501 2443 200 1910 3175 4425 1085 764 493 733 1000 2805 1637 1370 642 606 1518 3336 2090 1858 XP Spent 41375 | . 4000 . 5595 3380 . . 4500 4525 1490 . 1450 . 1500 3040 . 1495 . 1475 2955 3000 1570 1400 Upgrades 101 | . 14 . 17 8 . . 16 10 7 . 3 . 2 8 . 2 . 3 5 2 3 1 Propulsion Slot 4 | . . . . 1 . . . . . . . . . 1 . . . . . . 1 1 Utility Slot 6 | . 2 . 1 1 . . 1 . . . . . . . . . . . . 1 . . Weapon Slot 4 | . . . 1 . . . . 1 . . . . 1 . . 1 . . . . . . Core Integrity 9 | . 1 . . . . . 2 . 2 . . . . 2 . 1 . . 1 . . . Heat Dissipation 7 | . . . . . . . . 1 3 . . . . 2 . . . . . . 1 . Energy Generation 4 | . . . . 2 . . . . . . 1 . . . . . . . 1 . . . Energy Storage 5 | . . . . . . . 2 . . . 1 . . . . . . 1 . . 1 . Matter Storage 3 | . . . . . . . 2 1 . . . . . . . . . . . . . . Mass Support 7 | . 2 . . 1 . . . . . . 1 . . . . . . . 3 . . . Inventory Capacity 4 | . . . 2 . . . . 2 . . . . . . . . . . . . . . Sight Range 3 | . . . 1 . . . 1 . . . . . . 1 . . . . . . . . Sensor Range 11 | . 2 . 3 . . . 4 2 . . . . . . . . . . . . . . Terrain Scan Density 7 | . 1 . 1 3 . . 2 . . . . . . . . . . . . . . . Ranged Accuracy 3 | . . . . . . . . . . . . . 1 1 . . . 1 . . . . Hack Attack % 3 | . 1 . . . . . . 1 1 . . . . . . . . . . . . . Hack Defense % 2 | . 1 . . . . . . 1 . . . . . . . . . . . . . . KI Resistance % 4 | . . . 4 . . . . . . . . . . . . . . . . . . . TH Resistance % 4 | . 4 . . . . . . . . . . . . . . . . . . . . . EX Resistance % 4 | . . . 4 . . . . . . . . . . . . . . . . . . . KI Damage % 1 | . . . . . . . . 1 . . . . . . . . . . . . . . TH Damage % 3 | . . . . . . . 1 . 1 . . . . 1 . . . . . . . . EX Damage % 3 | . . . . . . . 1 . . . . . . . . . . 1 . 1 . . Protomatter Created 2003 | . . . 301 129 . 23 224 111 46 143 . 27 . 189 206 66 107 68 102 128 . 133 Integrity Restored 2636 | . . 7 53 258 . . 382 41 138 243 . 81 . 168 397 286 108 204 . 90 . 180 Core 2401 | . . 7 28 256 . . 206 30 138 243 . 81 . 168 397 265 108 204 . 90 . 180 Parts 235 | . . . 25 2 . . 176 11 . . . . . . . 21 . . . . . . Protomatter Decayed 1145 | . . 15 330 . . 5 . 94 1 57 . . . 133 47 . 142 . 85 87 76 73 Game ------ Seed DeliveryDataBoomstick Manual? 0 Play Time 03:30:41 Cumulative 138.9 hours Start 2020.01.04 @ 10:37:05 End 2020.01.04 @ 14:16:45 Sessions 1 Manual Loads 0 Difficulty Adventurer Special Mode Winter2019/RPGLIKE Game No. 60 Rogue 49 Adventurer 11 Explorer 0 Win Type - Total 0 Types 0/0/0/0/0/0/0 Lore% 50 Gallery% 55 Achievement% 44 Wizard Run 0 Options --------- ASCII 0 Keyboard 0 Movement Mouse Keybinds 0 Fullscreen 1 Font 12/Smallcaps Map View 83x54 Tactical HUD 0 Map Filters NONE Filters NONE Steam 1 RUN: a4590cd5-fb7c-4173-8686-0492d144da02